fUST/lending_fUST_20240325
["ID","MTS","AMOUNT","RATE_DAILY","PERIOD"]
[320345795,1711314637051,-460.84159426,0.00054794,120]
[320345796,1711314637062,-166.454204,0.00054794,7]
[320345797,1711314637072,-166.454204,0.00054794,7]
[320345798,1711314637081,-166.454204,0.00054794,7]
[320345799,1711314637090,-166.454204,0.00054794,7]
[320345800,1711314637100,-500.0,0.00054794,120]
[320345801,1711314637109,-166.454204,0.00054794,7]
[320345802,1711314637119,-166.454204,0.00054794,7]
[320345803,1711314637132,-166.454204,0.00054794,7]
[320345804,1711314637143,-500.0,0.00054794,120]
[320345805,1711314637152,-166.454204,0.00054794,7]
[320345806,1711314637161,-166.454204,0.00054794,7]
[320345807,1711314637171,-166.454204,0.00054794,7]
[320345808,1711314637180,-166.454204,0.00054794,7]
[320345809,1711314637191,-166.454204,0.00054794,7]
[320345810,1711314637200,-500.0,0.00054794,120]
[320345811,1711314637211,-500.3809056,0.00054794,120]
[320345812,1711314637221,-500.0,0.00054794,120]
[320345813,1711314637230,-500.0,0.00054794,120]
[320345814,1711314637238,-500.0,0.00054794,120]
[320345815,1711314637248,-492.8433971,0.00054794,120]
[320345816,1711314637258,-500.0,0.00054794,120]
[320345817,1711314637267,-500.0,0.00054794,120]
[320345818,1711314637276,-500.0,0.00054794,30]
[320345819,1711314637286,-300.61357087,0.00054794,120]
[320345820,1711314637297,-958.04,0.00054794,120]
[320345821,1711314637306,-500.14,0.00054794,120]
[320345822,1711314637315,-500.0,0.00054794,120]
[320345823,1711314637324,-500.0,0.00054794,120]
[320345824,1711314637334,-500.76751389,0.00054794,120]
[320345825,1711314637343,-500.0,0.00054794,120]
[320345826,1711314637352,-500.0,0.00054794,120]
[320345827,1711314637362,-500.0,0.00054794,120]
[320345828,1711314637371,-500.0,0.00054794,120]
[320345829,1711314637383,-500.0,0.00054794,120]
[320345830,1711314637394,-500.0,0.00054794,120]
[320345831,1711314637403,-500.0,0.00054794,120]
[320345832,1711314637414,-500.0,0.00054794,120]
[320345833,1711314637423,-500.0,0.00054794,120]
[320345834,1711314637433,-500.0,0.00054794,120]
[320345835,1711314637443,-500.79383506,0.00054794,120]
[320345836,1711314637516,-500.0,0.00054794,120]
[320345837,1711314637526,-500.0,0.00054794,120]
[320345838,1711314637535,-289.01569629,0.00054794,120]
[320345839,1711314637544,-500.0,0.00054794,120]
[320345840,1711314637553,-500.37116778,0.00054794,120]
[320345841,1711314637563,-500.0,0.00054794,120]
[320345842,1711314637572,-500.0,0.00054794,120]
[320345843,1711314637581,-500.0,0.00054794,120]
[320345844,1711314637591,-725.0,0.00054794,120]
[320345845,1711314637600,-977.52,0.00054794,120]
[320345846,1711314637609,-977.52,0.00054794,120]
[320345847,1711314637618,-977.52,0.00054794,120]
[320345848,1711314637627,-500.0,0.00054794,120]
[320345849,1711314637636,-977.52,0.00054794,120]
[320345850,1711314637644,-977.52,0.00054794,120]
[320345851,1711314637653,-977.52,0.00054794,120]
[320345852,1711314637662,-977.52,0.00054794,120]
[320345853,1711314637671,-977.52,0.00054794,120]
[320345854,1711314637680,-500.0,0.00054794,120]
[320345855,1711314637689,-977.52,0.00054794,120]
[320345856,1711314637698,-977.52,0.00054794,120]
[320345857,1711314637708,-500.0,0.00054794,120]
[320345858,1711314637717,-977.52,0.00054794,120]
[320345859,1711314637726,-977.52,0.00054794,120]
[320345860,1711314637736,-977.52,0.00054794,120]
[320345861,1711314637744,-977.52,0.00054794,120]
[320345862,1711314637754,-977.52,0.00054794,120]
[320345863,1711314637762,-977.52,0.00054794,120]
[320345864,1711314637772,-977.52,0.00054794,120]
[320345865,1711314637781,-977.52,0.00054794,120]
[320345866,1711314637790,-977.52,0.00054794,120]
[320345867,1711314637800,-500.0,0.00054794,120]
[320345868,1711314637809,-500.0,0.00054794,120]
[320345869,1711314637818,-500.0,0.00054794,120]
[320345870,1711314637827,-500.0,0.00054794,120]
[320345871,1711314637836,-151.0,0.00054794,7]
[320345872,1711314637845,-500.0,0.00054794,120]
[320345873,1711314637854,-151.0,0.00054794,7]
[320345874,1711314637863,-151.0,0.00054794,7]
[320345875,1711314637872,-151.0,0.00054794,7]
[320345876,1711314637881,-151.0,0.00054794,7]
[320345877,1711314637890,-151.0,0.00054794,7]
[320345878,1711314637899,-500.0,0.00054794,120]
[320345879,1711314637908,-500.0,0.00054794,120]
[320345880,1711314637917,-500.0,0.00054794,120]
[320345881,1711314637928,-500.0,0.00054794,120]
[320345882,1711314637937,-500.0,0.00054794,120]
[320345883,1711314637948,-500.0,0.00054794,120]
[320345884,1711314637958,-500.0,0.00054794,60]
[320345885,1711314637967,-188.02131333,0.00054794,120]
[320345886,1711314637976,-500.0,0.00054794,120]
[320345887,1711314637985,-500.0,0.00054794,120]
[320345888,1711314637995,-500.0,0.00054794,120]
[320345889,1711314638004,-500.0,0.00054794,120]
[320345890,1711314638013,-500.0,0.00054794,120]
[320345891,1711314638023,-2420.29,0.00054794,120]
[320345892,1711314638032,-500.0,0.00054794,120]
[320345893,1711314638042,-500.0,0.00054794,120]
[320345895,1711314638052,-500.0,0.00054794,7]
[320345897,1711314638061,-500.0,0.00054794,120]
[320345899,1711314638071,-2246.99,0.00054794,120]
[320345901,1711314638080,-467.64757315,0.00054794,120]
[320345903,1711314638089,-500.0,0.00054794,120]
[320345905,1711314638098,-500.0,0.00054794,120]
[320345906,1711314638107,-520.98,0.00054794,120]
[320345908,1711314638118,-500.0,0.00054794,120]
[320345910,1711314638129,-547.6,0.00054794,120]
[320345912,1711314638138,-500.0,0.00054794,120]
[320345915,1711314638147,-501.23058836,0.00054794,120]
[320345917,1711314638156,-502.34938608,0.00054794,120]
[320345919,1711314638166,-500.0,0.00054794,120]
[320345922,1711314638176,-500.0,0.00054794,120]
[320345924,1711314638185,-500.0,0.00054794,120]
[320345926,1711314638194,-500.0,0.00054794,120]
[320345928,1711314638204,-500.0,0.00054794,120]
[320345930,1711314638214,-500.0,0.00054794,120]
[320345932,1711314638224,-500.0,0.00054794,120]
[320345934,1711314638234,-500.0,0.00054794,120]
[320345937,1711314638243,-500.0,0.00054794,120]
[320345940,1711314638252,-500.0,0.00054794,120]
[320345943,1711314638261,-500.0,0.00054794,120]
[320345947,1711314638270,-500.0,0.00054794,120]
[320345950,1711314638279,-277.21657967,0.00054794,120]
[320345953,1711314638289,-500.0,0.00054794,120]
[320345955,1711314638298,-500.0,0.00054794,120]
[320345957,1711314638307,-414.83260532,0.00054794,120]
[320345959,1711314638316,-500.0,0.00054794,120]
[320345962,1711314638325,-500.0,0.00054794,120]
[320345963,1711314638335,-500.0,0.00054794,120]
[320345965,1711314638345,-500.0,0.00054794,120]
[320345969,1711314638355,-500.0,0.00054794,120]
[320345971,1711314638365,-500.0,0.00054794,120]
[320345973,1711314638374,-500.0,0.00054794,120]
[320345974,1711314638383,-500.0,0.00054794,120]
[320345976,1711314638392,-641.93356281,0.00054794,120]
[320345978,1711314638401,-221.29982064,0.00054794,120]
[320345980,1711314638410,-500.0,0.00054794,120]
[320345982,1711314638420,-500.0,0.00054794,120]
[320345984,1711314638430,-500.0,0.00054794,120]
[320345986,1711314638439,-500.0,0.00054794,120]
[320345987,1711314638448,-500.0,0.00054794,120]
[320345988,1711314638459,-500.0,0.00054794,120]
[320345989,1711314638468,-500.0,0.00054794,120]
[320345990,1711314638477,-500.0,0.00054794,120]
[320345991,1711314638487,-500.0,0.00054794,120]
[320345992,1711314638497,-500.0,0.00054794,120]
[320345993,1711314638506,-1000.0,0.00054794,120]
[320345994,1711314638515,-500.0,0.00054794,120]
[320345995,1711314638525,-500.0,0.00054794,120]
[320345996,1711314638535,-17480.93,0.00054794,120]
[320345997,1711314638545,-500.0,0.00054794,120]
[320345998,1711314638554,-500.5775585,0.00054794,2]
[320345999,1711314638563,-405.92032026,0.00054794,120]
[320346000,1711314638573,-500.0,0.00054794,120]
[320346001,1711314638640,-500.0,0.00054794,120]
[320346002,1711314638649,-8365.44,0.00054794,120]
[320346003,1711314638658,-500.0,0.00054794,120]
[320346004,1711314638668,-500.0,0.00054794,60]
[320346005,1711314638677,-508.8,0.00054794,120]
[320346006,1711314638686,-500.0,0.00054794,120]
[320346007,1711314638696,-151.0,0.00054794,7]
[320346009,1711314638707,-151.0,0.00054794,7]
[320346010,1711314638716,-151.0,0.00054794,7]
[320346011,1711314638726,-151.0,0.00054794,7]
[320346012,1711314638736,-151.0,0.00054794,7]
[320346013,1711314638745,-151.0,0.00054794,7]
[320346014,1711314638754,-500.0,0.00054794,120]
[320346015,1711314638763,-151.0,0.00054794,7]
[320346016,1711314638773,-151.0,0.00054794,7]
[320346017,1711314638783,-151.0,0.00054794,7]
[320346018,1711314638793,-151.0,0.00054794,7]
[320346019,1711314638803,-172.521644,0.00054794,7]
[320346020,1711314638814,-500.0,0.00054794,120]
[320346021,1711314638824,-500.0,0.00054794,120]
[320346022,1711314638833,-4057.13,0.00054794,2]
[320346023,1711314638844,-604.16,0.00054794,120]
[320346024,1711314638854,-611.660622,0.00054794,7]
[320346025,1711314638864,-12362.09,0.00054794,120]
[320346026,1711314638874,-611.660622,0.00054794,7]
[320346027,1711314638884,-611.660622,0.00054794,7]
[320346028,1711314638893,-611.660622,0.00054794,7]
[320346029,1711314638903,-611.660622,0.00054794,7]
[320346030,1711314638913,-611.660622,0.00054794,7]
[320346031,1711314638922,-377.621982,0.00054794,120]
[320346032,1711314638931,-611.660622,0.00054794,7]
[320346033,1711314638940,-611.660622,0.00054794,7]
[320346034,1711314638949,-611.660622,0.00054794,7]
[320346035,1711314638958,-611.660622,0.00054794,7]
[320346036,1711314638967,-611.660622,0.00054794,7]
[320346037,1711314638978,-611.660622,0.00054794,7]
[320346038,1711314638988,-500.0,0.00054794,120]
[320346039,1711314638997,-500.0,0.00054794,120]
[320346040,1711314639008,-748.03,0.00054794,120]
[320346041,1711314639017,-500.0,0.00054794,120]
[320346042,1711314639027,-500.0,0.00054794,120]
[320346043,1711314639035,-502.77306142,0.00054794,120]
[320346044,1711314639045,-500.0,0.00054794,120]
[320346045,1711314639055,-2125.6,0.00054794,120]
[320346046,1711314639064,-500.0,0.00054794,120]
[320346047,1711314639073,-500.0,0.00054794,120]
[320346048,1711314639082,-500.0,0.00054794,120]
[320346049,1711314639091,-427.49478328,0.00054794,120]
[320346050,1711314639102,-2970.68,0.00054794,120]
[320346051,1711314639113,-694.69,0.00054794,120]
[320346052,1711314639123,-22313.25,0.00054794,120]
[320346053,1711314639137,-500.0,0.00054794,120]
[320346054,1711314639147,-500.0,0.00054794,120]
[320346055,1711314639156,-500.0,0.00054794,120]
[320346056,1711314639167,-508.4960995,0.00054794,120]
[320346057,1711314639176,-500.0,0.00054794,120]
[320346058,1711314639186,-4561.4,0.00054794,120]
[320346059,1711314639195,-503.0735052,0.00054794,120]
[320346060,1711314639206,-151.0,0.00054794,7]
[320346061,1711314639215,-151.0,0.00054794,7]
[320346062,1711314639226,-500.0,0.00054794,120]
[320346063,1711314639238,-500.0,0.00054794,120]
[320346064,1711314639246,-1831.01,0.00054794,120]
[320346065,1711314639255,-4406.86,0.00054794,120]
[320346066,1711314639264,-626.97051343,0.00054794,120]
[320346067,1711314639273,-500.0,0.00054794,120]
[320346068,1711314639285,-500.0,0.00054794,120]
[320346069,1711314639294,-500.0,0.00054794,120]
[320346070,1711314639304,-155.0,0.00054794,120]
[320346071,1711314639313,-658.57,0.00054794,120]
[320346072,1711314639322,-1837.47,0.00054794,120]
[320346073,1711314639331,-500.0,0.00054794,120]
[320346074,1711314639340,-500.0,0.00054794,120]
[320346075,1711314639349,-166.34391731,0.00054794,120]
[320346076,1711314639358,-2332.34,0.00054794,120]
[320346077,1711314639367,-500.0,0.00054794,120]
[320346078,1711314639376,-2761.55,0.00054794,120]
[320346079,1711314639385,-500.37354689,0.00054794,120]
[320346080,1711314639393,-5308.35,0.00054794,120]
[320346081,1711314639402,-500.0,0.00054794,120]
[320346082,1711314639412,-500.0,0.00054794,120]
[320346083,1711314639420,-500.0,0.00054794,120]
[320346084,1711314639430,-500.0,0.00054794,120]
[320346085,1711314639439,-11981.95,0.00054794,120]
[320346086,1711314639448,-2313.51,0.00054794,120]
[320346087,1711314639458,-500.0,0.00054794,120]
[320346088,1711314639467,-500.0,0.00054794,120]
[320346089,1711314639476,-507.88,0.00054794,120]
[320346090,1711314639485,-500.0,0.00054794,120]
[320346091,1711314639494,-500.0,0.00054794,120]
[320346092,1711314639503,-500.0,0.00054794,120]
[320346093,1711314639512,-500.0,0.00054794,120]
[320346094,1711314639521,-993.58,0.00054794,120]
[320346095,1711314639530,-500.0,0.00054794,120]
[320346096,1711314639539,-500.0,0.00054794,120]
[320346097,1711314639549,-368.83574321,0.00054794,120]
[320346098,1711314639557,-500.0,0.00054794,120]
[320346099,1711314639567,-915.03,0.00054794,120]
[320346100,1711314639576,-612.08,0.00054794,120]
[320346101,1711314639585,-165.05721308,0.00054794,120]
[320346102,1711314639594,-500.0,0.00054794,120]
[320346103,1711314639602,-500.0,0.00054794,120]
[320346104,1711314639612,-2001.62,0.00054794,120]
[320346105,1711314639621,-171.91326712,0.00054794,120]
[320346106,1711314639630,-1087.35,0.00054794,120]
[320346107,1711314639695,-500.0,0.00054794,120]
[320346108,1711314639705,-500.0,0.00054794,120]
[320346109,1711314639714,-22472.06,0.00054794,120]
[320346110,1711314639723,-1000.0,0.00054794,7]
[320346111,1711314639733,-25985.32,0.00054794,90]
[320346112,1711314639742,-989.84,0.00054794,120]
[320346113,1711314639752,-151.0,0.00054794,7]
[320346114,1711314639761,-151.0,0.00054794,7]
[320346115,1711314639770,-500.0,0.00054794,120]
[320346116,1711314639779,-1543.9,0.00054794,120]
[320346117,1711314639788,-3779.01,0.00054794,120]
[320346118,1711314639797,-500.0,0.00054794,120]
[320346119,1711314639807,-151.0,0.00054794,120]
[320346120,1711314639816,-500.0,0.00054794,120]
[320346121,1711314639825,-5233.88,0.00054794,21]
[320346122,1711314639836,-500.0,0.00054794,120]
[320346123,1711314639845,-500.0,0.00054794,120]
[320346124,1711314639855,-1878.52,0.00054794,120]
[320346125,1711314639864,-500.0,0.00054794,120]
[320346126,1711314639873,-1817.9,0.00054794,120]
[320346127,1711314639882,-500.0,0.00054794,120]
[320346128,1711314639892,-500.0,0.00054794,120]
[320346129,1711314639901,-500.0,0.00054794,120]
[320346130,1711314639911,-154.82968734,0.00054794,120]
[320346131,1711314639919,-500.0,0.00054794,120]
[320346132,1711314639929,-500.0,0.00054794,120]
[320346133,1711314639938,-1440.6,0.00054794,120]
[320346134,1711314639947,-500.0,0.00054794,120]
[320346135,1711314639956,-500.0,0.00054794,120]
[320346136,1711314639965,-500.0,0.00054794,120]
[320346137,1711314639975,-151.0,0.00054794,7]
[320346138,1711314639984,-151.0,0.00054794,7]
[320346139,1711314639993,-151.0,0.00054794,7]
[320346140,1711314640003,-151.0,0.00054794,7]
[320346141,1711314640012,-2284.3,0.00054794,120]
[320346142,1711314640021,-287.104007,0.00054794,7]
[320346143,1711314640030,-500.0,0.00054794,120]
[320346144,1711314640039,-500.0,0.00054794,120]
[320346145,1711314640049,-500.0,0.00054794,120]
[320346146,1711314640058,-500.0,0.00054794,120]
[320346147,1711314640066,-500.0,0.00054794,120]
[320346148,1711314640075,-500.0,0.00054794,120]
[320346149,1711314640085,-627.12549703,0.00054794,120]
[320346150,1711314640094,-2647.26,0.00054794,120]
[320346151,1711314640103,-500.0,0.00054794,120]
[320346153,1711314640112,-500.0,0.00054794,120]
[320346154,1711314640121,-500.0,0.00054794,120]
[320346155,1711314640134,-4853.11,0.00054794,120]
[320346156,1711314640143,-500.0,0.00054794,120]
[320346157,1711314640151,-1492.3,0.00054794,120]
[320346158,1711314640161,-151.0,0.00054794,7]
[320346160,1711314640170,-151.0,0.00054794,7]
[320346162,1711314640179,-151.0,0.00054794,7]
[320346164,1711314640187,-220.153592,0.00054794,7]
[320346166,1711314640196,-500.0,0.00054794,120]
[320346167,1711314640205,-500.0,0.00054794,120]
[320346169,1711314640215,-449.196396,0.00054893,30]
[320346171,1711314640224,-1344.6555,0.00054893,30]
[320346175,1711314640234,-2912.27,0.00055307,120]
[320346177,1711314640243,-449.196396,0.00055563,30]
[320346179,1711314640252,-1344.6555,0.00055563,30]
[320346181,1711314640260,-2912.27,0.00055855,120]
[320346183,1711314640270,-153.0,0.00055956,60]
[320346185,1711314640278,-153.0,0.00055956,60]
[320346187,1711314640287,-215.7206022,0.00055956,60]
[320346190,1711314640297,-150.59564405,0.00056081,120]
[320346192,1711314640306,-449.196396,0.00056232,30]
[320346194,1711314640315,-1344.6555,0.00056232,30]
[320346197,1711314640324,-151.77830393,0.00056286,120]
[320346199,1711314640334,-151.77830393,0.00056372,120]
[320346202,1711314640343,-2912.27,0.00056403,120]
[320346204,1711314640352,-150.59564405,0.00056841,120]
[320346207,1711314640361,-977.52,0.00056885,120]
[320346210,1711314640370,-977.52,0.00056885,120]
[320346213,1711314640378,-977.52,0.00056885,120]
[320346214,1711314640387,-977.52,0.00056885,120]
[320346216,1711314640396,-977.69740897,0.00056885,120]
[320346218,1711314640405,-2912.27,0.00056951,120]
[320346220,1711314640413,-1000.0,0.00057268,30]
[320346222,1711314640422,-1000.0,0.00057303,30]
[320346224,1711314640431,-1000.0,0.00057306,30]
[320346226,1711314640441,-1000.0,0.00057322,30]
[320346228,1711314640450,-492.10155137,0.00057347,30]
[320346230,1711314640461,-1000.0,0.00057384,30]
[320346232,1711314640470,-151.0,0.00057384,120]
[320346234,1711314640479,-611.660622,0.00057384,10]
[320346236,1711314640488,-611.660622,0.00057384,10]
[320346238,1711314640497,-445.17502421,0.00057434,120]
[320346240,1711314640506,-445.17502421,0.00057434,120]
[320346242,1711314640515,-445.17502421,0.00057434,120]
[320346244,1711314640524,-445.17502421,0.00057434,120]
[320346246,1711314640533,-445.17502421,0.00057434,120]
[320346247,1711314640543,-445.17502421,0.00057434,120]
[320346249,1711314640552,-445.17502421,0.00057434,120]
[320346251,1711314640561,-445.17502421,0.00057434,120]
[320346253,1711314640571,-445.17502421,0.00057434,120]
[320346260,1711314640632,-445.17502421,0.00057434,120]
[320346262,1711314640642,-445.17502421,0.00057434,120]
[320346263,1711314640650,-445.17502421,0.00057434,120]
[320346265,1711314640659,-445.17502421,0.00057434,120]
[320346266,1711314640668,-445.17502421,0.00057434,120]
[320346267,1711314640676,-445.17502421,0.00057434,120]
[320346268,1711314640685,-445.17502421,0.00057434,120]
[320346269,1711314640694,-445.17502421,0.00057434,120]
[320346270,1711314640703,-445.17502421,0.00057434,120]
[320346271,1711314640715,-445.17502421,0.00057434,120]
[320346272,1711314640723,-445.67,0.00057434,120]
[320346273,1711314640732,-171.23812091,0.00057434,120]
[320346274,1711314640741,-171.23812091,0.00057434,120]
[320346275,1711314640749,-171.23812091,0.00057434,120]
[320346276,1711314640758,-171.23812091,0.00057434,120]
[320346277,1711314640767,-171.23812091,0.00057434,120]
[320346278,1711314640775,-171.23812091,0.00057434,120]
[320346279,1711314640784,-171.23812091,0.00057434,120]
[320346280,1711314640793,-171.23812091,0.00057434,120]
[320346281,1711314640802,-171.23812091,0.00057434,120]
[320346282,1711314640810,-171.23812091,0.00057434,120]
[320346283,1711314640819,-171.23812091,0.00057434,120]
[320346284,1711314640828,-171.23812091,0.00057434,120]
[320346285,1711314640837,-171.23812091,0.00057434,120]
[320346286,1711314640846,-171.23812091,0.00057434,120]
[320346287,1711314640854,-171.23812091,0.00057434,120]
[320346288,1711314640863,-171.23812091,0.00057434,120]
[320346289,1711314640872,-171.23812091,0.00057434,120]
[320346290,1711314640881,-171.23812091,0.00057434,120]
[320346291,1711314640890,-171.23812091,0.00057434,120]
[320346292,1711314640900,-171.73,0.00057434,120]
[320346293,1711314640911,-664.73168938,0.00057434,120]
[320346294,1711314640921,-664.73168938,0.00057434,120]
[320346295,1711314640931,-664.73168938,0.00057434,120]
[320346296,1711314640941,-664.73168938,0.00057434,120]
[320346297,1711314640951,-664.73168938,0.00057434,120]
[320346298,1711314640963,-664.73168938,0.00057434,120]
[320346299,1711314640973,-664.73168938,0.00057434,120]
[320346300,1711314640982,-664.73168938,0.00057434,120]
[320346301,1711314640991,-664.73168938,0.00057434,120]
[320346302,1711314641001,-664.73168938,0.00057434,120]
[320346303,1711314641010,-664.73168938,0.00057434,120]
[320346304,1711314641020,-664.73168938,0.00057434,120]
[320346305,1711314641029,-664.73168938,0.00057434,120]
[320346306,1711314641039,-664.73168938,0.00057434,120]
[320346307,1711314641061,-664.73168938,0.00057434,120]
[320346308,1711314641080,-664.73168938,0.00057434,120]
[320346309,1711314641098,-664.73168938,0.00057434,120]
[320346310,1711314641119,-664.73168938,0.00057434,120]
[320346312,1711314641135,-664.73168938,0.00057434,120]
[320346313,1711314641153,-166.454204,0.00057434,120]
[320346315,1711314641174,-166.454204,0.00057434,120]
[320346317,1711314641189,-151.0,0.00057434,120]
[320346319,1711314641208,-2912.27,0.00057499,120]
[320346320,1711314641226,-224.17791887,0.00057533,4]
[320346321,1711314641244,-500.0,0.00057534,120]
[320346322,1711314641265,-500.0,0.00057534,120]
[320346323,1711314641280,-500.0,0.00057534,120]
[320346324,1711314641293,-803.28,0.00057534,120]
[320346325,1711314641309,-502.13271576,0.00057534,120]
[320346326,1711314641324,-500.0,0.00057534,120]
[320346327,1711314641338,-500.37151895,0.00057534,120]
[320346328,1711314641352,-500.0,0.00057534,120]
[320346329,1711314641366,-500.0,0.00057534,120]
[320346330,1711314641379,-500.0,0.00057534,120]
[320346331,1711314641394,-499.8305,0.00057534,120]
[320346332,1711314641408,-500.0,0.00057534,120]
[320346333,1711314641421,-500.0,0.00057534,120]
[320346334,1711314641434,-500.0,0.00057534,120]
[320346335,1711314641448,-500.0,0.00057534,120]
[320346336,1711314641463,-715.49,0.00057534,120]
[320346337,1711314641476,-500.0,0.00057534,120]
[320346338,1711314641490,-500.0,0.00057534,120]
[320346339,1711314641504,-500.0,0.00057534,120]
[320346340,1711314641518,-500.0,0.00057534,120]
[320346341,1711314641532,-500.0,0.00057534,120]
[320346342,1711314641546,-500.0,0.00057534,120]
[320346343,1711314641560,-500.0,0.00057534,120]
[320346344,1711314641574,-500.0,0.00057534,120]
[320346345,1711314641589,-582.53061132,0.00057534,120]
[320346346,1711314641602,-499.86889088,0.00057534,120]
[320346347,1711314641616,-500.0,0.00057534,120]
[320346348,1711314641631,-500.0,0.00057534,2]
[320346349,1711314641644,-500.0,0.00057534,120]
[320346350,1711314641657,-500.0,0.00057534,120]
[320346351,1711314641671,-2206.63,0.00057534,120]
[320346352,1711314641683,-590.87708693,0.00057534,120]
[320346353,1711314641692,-500.0,0.00057534,120]
[320346354,1711314641701,-2011.08,0.00057534,120]
[320346355,1711314641806,-500.0,0.00057534,120]
[320346356,1711314641819,-500.0,0.00057534,120]
[320346357,1711314641828,-500.0,0.00057534,120]
[320346358,1711314641837,-500.0,0.00057534,120]
[320346359,1711314641846,-545.3,0.00057534,120]
[320346360,1711314641855,-500.0,0.00057534,120]
[320346361,1711314641863,-500.0,0.00057534,120]
[320346362,1711314641872,-500.0,0.00057534,120]
[320346363,1711314641881,-500.0,0.00057534,120]
[320346364,1711314641891,-500.0,0.00057534,120]
[320346365,1711314641900,-500.0,0.00057534,120]
[320346366,1711314641910,-500.0,0.00057534,120]
[320346367,1711314641920,-220.63573559,0.00057534,120]
[320346368,1711314641929,-500.0,0.00057534,120]
[320346369,1711314641938,-294.47,0.00057534,2]
[320346370,1711314641947,-500.0,0.00057534,120]
[320346371,1711314641957,-943.16,0.00057534,120]
[320346372,1711314641966,-514.3,0.00057534,120]
[320346373,1711314641975,-3472.67,0.00057534,120]
[320346374,1711314641984,-500.0,0.00057534,120]
[320346375,1711314641993,-500.0,0.00057534,120]
[320346376,1711314642002,-500.0,0.00057534,120]
[320346377,1711314642011,-500.0,0.00057534,120]
[320346378,1711314642020,-500.0,0.00057534,120]
[320346379,1711314642029,-500.0,0.00057534,120]
[320346380,1711314642039,-500.0,0.00057534,120]
[320346381,1711314642048,-500.0,0.00057534,120]
[320346382,1711314642057,-500.0,0.00057534,120]
[320346383,1711314642066,-500.0,0.00057534,120]
[320346384,1711314642076,-500.0,0.00057534,120]
[320346385,1711314642085,-500.0,0.00057534,120]
[320346386,1711314642094,-500.0,0.00057534,120]
[320346387,1711314642104,-500.0,0.00057534,120]
[320346388,1711314642113,-500.0,0.00057534,120]
[320346389,1711314642126,-506.00663503,0.00057534,120]
[320346390,1711314642136,-500.0,0.00057534,120]
[320346391,1711314642145,-501.60536921,0.00057534,120]
[320346392,1711314642154,-500.0,0.00057534,120]
[320346393,1711314642163,-500.0,0.00057534,120]
[320346394,1711314642172,-500.0,0.00057534,120]
[320346395,1711314642181,-200.43759893,0.00057534,120]
[320346396,1711314642191,-500.0,0.00057534,120]
[320346397,1711314642200,-166.454204,0.00057534,120]
[320346398,1711314642211,-166.454204,0.00057534,120]
[320346399,1711314642221,-166.454204,0.00057534,120]
[320346400,1711314642230,-166.454211,0.00057534,120]
[320346401,1711314642239,-500.0,0.00057534,120]
[320346402,1711314642248,-500.0,0.00057534,120]
[320346403,1711314642258,-428.65000488,0.00057534,120]
[320346404,1711314642267,-500.0,0.00057534,120]
[320346405,1711314642276,-500.0,0.00057534,30]
[320346406,1711314642285,-958.04,0.00057534,120]
[320346407,1711314642295,-500.14,0.00057534,120]
[320346408,1711314642304,-500.0,0.00057534,120]
[320346409,1711314642313,-500.0,0.00057534,120]